fUSD/lending_fUSD_20250109
["ID","MTS","AMOUNT","RATE_DAILY","PERIOD"]
[348226743,1736404243157,-425.73030868,9.994e-05,2]
[348226744,1736404243167,-500.0,9.994e-05,2]
[348226745,1736404243176,-500.0,9.994e-05,2]
[348226746,1736404243186,-500.36777369,9.994e-05,2]
[348226747,1736404243195,-942.86,9.994e-05,2]
[348226748,1736404243205,-500.0,9.994e-05,2]
[348226749,1736404243217,-500.0,9.994e-05,2]
[348226750,1736404243226,-507.63,9.994e-05,2]
[348226751,1736404243236,-587.54725706,9.994e-05,2]
[348226753,1736404243246,-572.73749973,9.994e-05,2]
[348226754,1736404243256,-500.0,9.994e-05,2]
[348226755,1736404243268,-500.0,9.994e-05,2]
[348226756,1736404243277,-1174.79,9.994e-05,2]
[348226757,1736404243287,-500.0,9.994e-05,2]
[348226758,1736404243296,-500.0,9.994e-05,2]
[348226759,1736404243307,-500.0,9.994e-05,2]
[348226760,1736404243317,-2992.54,9.994e-05,2]
[348226761,1736404243327,-503.09175867,9.994e-05,2]
[348226762,1736404243336,-500.0,9.994e-05,2]
[348226763,1736404243345,-500.0,9.994e-05,2]
[348226764,1736404243355,-500.0,9.994e-05,2]
[348226765,1736404243365,-579.28431244,9.994e-05,2]
[348226766,1736404243374,-502.19923924,9.994e-05,2]
[348226767,1736404243383,-500.0,9.994e-05,2]
[348226768,1736404243392,-500.0,9.994e-05,2]
[348226769,1736404243402,-500.0,9.994e-05,2]
[348226770,1736404243411,-500.0,9.994e-05,2]
[348226771,1736404243421,-513.44790389,9.994e-05,2]
[348226772,1736404243430,-503.53815595,9.994e-05,2]
[348226773,1736404243440,-500.0,9.994e-05,2]
[348226774,1736404243448,-282.05822708,9.994e-05,2]
[348226775,1736404243459,-500.0,9.994e-05,2]
[348226776,1736404243468,-500.0,9.994e-05,2]
[348226777,1736404243477,-500.0,9.994e-05,2]
[348226778,1736404243488,-500.0,9.994e-05,2]
[348226779,1736404243498,-500.0,9.994e-05,2]
[348226780,1736404243507,-401.71895686,9.994e-05,2]
[348226781,1736404243517,-500.65614294,9.994e-05,2]
[348226782,1736404243527,-880.01,9.994e-05,2]
[348226783,1736404243537,-500.0,9.994e-05,2]
[348226784,1736404243547,-3104.01,9.994e-05,2]
[348226785,1736404243556,-483.96423195,9.994e-05,2]
[348226786,1736404243569,-500.0,9.994e-05,2]
[348226787,1736404243578,-500.0,9.994e-05,2]
[348226788,1736404243587,-500.0,9.994e-05,2]
[348226789,1736404243597,-500.0,9.994e-05,2]
[348226790,1736404243608,-414.09113824,9.994e-05,2]
[348226791,1736404243617,-500.0,9.994e-05,2]
[348226793,1736404243627,-430.15,9.994e-05,2]
[348226795,1736404243636,-500.0,9.994e-05,2]
[348226796,1736404243646,-500.0,9.994e-05,2]
[348226798,1736404243657,-501.16813559,9.994e-05,2]
[348226800,1736404243667,-500.50045535,9.994e-05,2]
[348226802,1736404243677,-500.0,9.994e-05,2]
[348226804,1736404243686,-575.25,9.994e-05,2]
[348226806,1736404243696,-500.0,9.994e-05,2]
[348226808,1736404243705,-500.0,9.994e-05,2]
[348226810,1736404243715,-1528.09,9.994e-05,2]
[348226812,1736404243724,-500.0,9.994e-05,2]
[348226813,1736404243733,-1202.13,9.994e-05,2]
[348226814,1736404243742,-500.0,9.994e-05,2]
[348226815,1736404243752,-500.0,9.994e-05,2]
[348226816,1736404243761,-500.0,9.994e-05,2]
[348226817,1736404243770,-2141.69,9.994e-05,2]
[348226818,1736404243779,-1361.69,9.994e-05,2]
[348226819,1736404243788,-515.64,9.994e-05,2]
[348226820,1736404243797,-500.0,9.994e-05,2]
[348226821,1736404243806,-500.0,9.994e-05,2]
[348226822,1736404243815,-1199.04,9.994e-05,2]
[348226823,1736404243824,-500.0,9.994e-05,2]
[348226824,1736404243833,-500.0,9.994e-05,2]
[348226825,1736404243842,-500.0,9.994e-05,2]
[348226826,1736404243851,-500.0,9.994e-05,2]
[348226827,1736404243860,-753.38,9.994e-05,2]
[348226828,1736404243869,-502.98891223,9.994e-05,2]
[348226829,1736404243878,-501.33246564,9.994e-05,2]
[348226830,1736404243887,-552.96,9.994e-05,2]
[348226831,1736404243896,-500.0,9.994e-05,2]
[348226832,1736404243905,-500.0,9.994e-05,2]
[348226833,1736404243914,-504.84351205,9.994e-05,2]
[348226834,1736404243923,-786.17,9.994e-05,2]
[348226835,1736404243931,-500.0,9.994e-05,2]
[348226836,1736404243941,-500.0,9.994e-05,2]
[348226837,1736404243949,-683.14,9.994e-05,2]
[348226838,1736404243958,-500.0,9.994e-05,2]
[348226839,1736404243968,-500.0,9.994e-05,2]
[348226840,1736404243977,-500.0,9.994e-05,2]
[348226841,1736404243987,-500.0,9.994e-05,2]
[348226842,1736404243996,-500.0,9.994e-05,2]
[348226843,1736404244005,-1246.6,9.994e-05,2]
[348226844,1736404244015,-500.0,9.994e-05,2]
[348226845,1736404244023,-712.55,9.994e-05,2]
[348226846,1736404244032,-500.0,9.994e-05,2]
[348226847,1736404244041,-500.0,9.994e-05,2]
[348226848,1736404244050,-500.0,9.994e-05,2]
[348226849,1736404244059,-533.81,9.994e-05,2]
[348226850,1736404244068,-500.0,9.994e-05,2]
[348226851,1736404244079,-500.0,9.994e-05,2]
[348226852,1736404244088,-500.0,9.994e-05,2]
[348226853,1736404244098,-530.58277127,9.994e-05,2]
[348226854,1736404244109,-500.0,9.994e-05,2]
[348226855,1736404244120,-566.55,9.994e-05,2]
[348226856,1736404244131,-603.23,9.994e-05,2]
[348226857,1736404244141,-898.63,9.994e-05,2]
[348226858,1736404244151,-500.0,9.994e-05,2]
[348226859,1736404244161,-500.0,9.994e-05,2]
[348226860,1736404244170,-500.0,9.994e-05,2]
[348226861,1736404244180,-545.02,9.994e-05,2]
[348226862,1736404244191,-500.0,9.994e-05,2]
[348226863,1736404244201,-556.18,9.994e-05,2]
[348226864,1736404244211,-500.0,9.994e-05,2]
[348226865,1736404244221,-500.0,9.994e-05,2]
[348226866,1736404244230,-500.0,9.994e-05,2]
[348226867,1736404244240,-1000.0,9.994e-05,2]
[348226868,1736404244249,-500.0,9.994e-05,2]
[348226869,1736404244260,-493.56737172,9.994e-05,2]
[348226870,1736404244270,-933.21,9.994e-05,2]
[348226871,1736404244280,-500.0,9.994e-05,2]
[348226872,1736404244289,-500.0,9.994e-05,2]
[348226873,1736404244298,-500.0,9.994e-05,2]
[348226874,1736404244307,-500.0,9.994e-05,2]
[348226875,1736404244317,-168.26303724,9.994e-05,2]
[348226876,1736404244327,-500.0,9.994e-05,2]
[348226877,1736404244337,-500.0,9.994e-05,2]
[348226878,1736404244347,-500.0,9.994e-05,2]
[348226879,1736404244356,-500.0,9.994e-05,2]
[348226880,1736404244365,-500.0,9.994e-05,2]
[348226881,1736404244375,-500.0,9.994e-05,2]
[348226882,1736404244385,-500.0,9.994e-05,2]
[348226883,1736404244395,-500.0,9.994e-05,2]
[348226884,1736404244405,-500.0,9.994e-05,2]
[348226885,1736404244415,-500.0,9.994e-05,2]
[348226886,1736404244425,-500.0,9.994e-05,2]
[348226887,1736404244435,-500.0,9.994e-05,2]
[348226888,1736404244443,-500.0,9.994e-05,2]
[348226889,1736404244453,-500.0,9.994e-05,2]
[348226890,1736404244464,-500.0,9.994e-05,2]
[348226891,1736404244474,-500.0,9.994e-05,2]
[348226892,1736404244483,-171.47957221,9.994e-05,2]
[348226893,1736404244493,-500.0,9.994e-05,2]
[348226894,1736404244503,-500.0,9.994e-05,2]
[348226895,1736404244512,-500.0,9.994e-05,2]
[348226896,1736404244521,-500.0,9.994e-05,2]
[348226897,1736404244531,-521.37,9.994e-05,2]
[348226898,1736404244541,-500.0,9.994e-05,2]
[348226899,1736404244550,-4088.45358719,9.994e-05,2]
[348226900,1736404244561,-288.23068085,9.995e-05,2]
[348226901,1736404244575,-500.0,9.995e-05,2]
[348226902,1736404244585,-232.34832248,9.995e-05,2]
[348226903,1736404244595,-500.0,9.995e-05,2]
[348226904,1736404244604,-500.0,9.995e-05,2]
[348226905,1736404244614,-510.69176961,9.995e-05,2]
[348226906,1736404244624,-506.05401608,9.995e-05,2]
[348226907,1736404244634,-197.23774062,9.995e-05,2]
[348226908,1736404244644,-495.23639197,9.995e-05,2]
[348226909,1736404244653,-500.0,9.995e-05,2]
[348226910,1736404244663,-612.47463077,9.995e-05,2]
[348226911,1736404244673,-500.0,9.995e-05,2]
[348226912,1736404244682,-500.0,9.995e-05,2]
[348226913,1736404244691,-500.0,9.995e-05,2]
[348226914,1736404244702,-500.0,9.995e-05,2]
[348226915,1736404244711,-500.0,9.995e-05,2]
[348226916,1736404244720,-501.93164982,9.995e-05,2]
[348226917,1736404244730,-500.0,9.995e-05,2]
[348226918,1736404244739,-206.27812766,9.995e-05,2]
[348226919,1736404244748,-500.0,9.995e-05,2]
[348226920,1736404244758,-500.0,9.995e-05,2]
[348226921,1736404244767,-500.0,9.995e-05,2]
[348226922,1736404244776,-589.70700499,9.995e-05,2]
[348226923,1736404244786,-500.0,9.995e-05,2]
[348226924,1736404244795,-500.0,9.995e-05,2]
[348226925,1736404244806,-500.0,9.995e-05,2]
[348226926,1736404244816,-500.0,9.995e-05,2]
[348226927,1736404244825,-231.34447573,9.995e-05,2]
[348226928,1736404244836,-204.76847216,9.995e-05,2]
[348226929,1736404244847,-500.0,9.995e-05,2]
[348226930,1736404244856,-500.0,9.995e-05,2]
[348226931,1736404244866,-500.0,9.995e-05,2]
[348226932,1736404244876,-500.0,9.995e-05,2]
[348226933,1736404244887,-500.0,9.995e-05,2]
[348226934,1736404244897,-187.37459291,9.995e-05,2]
[348226935,1736404244908,-500.0,9.995e-05,2]
[348226936,1736404244918,-500.0,9.995e-05,2]
[348226937,1736404244928,-500.0,9.995e-05,2]
[348226938,1736404244937,-1194.94,9.995e-05,2]
[348226939,1736404244946,-1062.91,9.995e-05,2]
[348226940,1736404244956,-2585.8390218,9.996e-05,2]
[348226941,1736404244966,-1480.4906535,9.996e-05,2]
[348226942,1736404244975,-3328.0390029,9.996e-05,2]
[348226943,1736404244986,-822.3412854,9.996e-05,2]
[348226944,1736404244995,-386.55990554,9.999e-05,2]
[348226945,1736404245005,-500.0,9.999e-05,2]
[348226946,1736404245015,-500.0,9.999e-05,2]
[348226947,1736404245024,-200.4130569,9.999e-05,2]
[348226948,1736404245033,-500.0,9.999e-05,2]
[348226949,1736404245043,-500.0,9.999e-05,2]
[348226950,1736404245052,-500.0,9.999e-05,2]
[348226951,1736404245061,-500.0,9.999e-05,2]
[348226952,1736404245071,-500.0,9.999e-05,2]
[348226953,1736404245080,-500.0,9.999e-05,2]
[348226954,1736404245090,-500.0,9.999e-05,2]
[348226955,1736404245100,-500.0,9.999e-05,2]
[348226956,1736404245110,-500.0,9.999e-05,2]
[348226957,1736404245120,-500.0,9.999e-05,2]
[348226958,1736404245130,-500.0,9.999e-05,2]
[348226959,1736404245139,-500.0,9.999e-05,2]
[348226960,1736404245149,-500.0,9.999e-05,2]
[348226961,1736404245158,-500.0,9.999e-05,2]
[348226962,1736404245168,-500.0,9.999e-05,2]
[348226963,1736404245178,-500.0,9.999e-05,2]
[348226964,1736404245188,-500.0,9.999e-05,2]
[348226965,1736404245197,-500.0,9.999e-05,2]
[348226966,1736404245206,-500.0,9.999e-05,2]
[348226967,1736404245216,-500.0,9.999e-05,2]
[348226968,1736404245225,-500.0,9.999e-05,2]
[348226969,1736404245234,-500.0,9.999e-05,2]
[348226970,1736404245242,-500.0,9.999e-05,2]
[348226971,1736404245252,-419.80780117,9.999e-05,2]
[348226972,1736404245261,-501.60678494,9.999e-05,2]
[348226973,1736404245270,-500.0,9.999e-05,2]
[348226974,1736404245279,-500.0,9.999e-05,2]
[348226975,1736404245288,-500.0,9.999e-05,2]
[348226976,1736404245297,-500.0,9.999e-05,2]
[348226977,1736404245306,-500.0,9.999e-05,2]
[348226978,1736404245314,-500.0,9.999e-05,2]
[348226979,1736404245323,-500.0,9.999e-05,2]
[348226980,1736404245332,-500.0,9.999e-05,2]
[348226981,1736404245341,-500.0,9.999e-05,2]
[348226982,1736404245351,-500.0,9.999e-05,2]
[348226983,1736404245360,-500.0,9.999e-05,2]
[348226984,1736404245369,-500.0,9.999e-05,2]
[348226985,1736404245378,-500.0,9.999e-05,2]
[348226986,1736404245386,-500.0,9.999e-05,2]
[348226987,1736404245590,-500.0,9.999e-05,2]
[348226988,1736404245600,-500.0,9.999e-05,2]
[348226989,1736404245610,-500.0,9.999e-05,2]
[348226990,1736404245621,-500.0,9.999e-05,2]
[348226991,1736404245630,-500.0,9.999e-05,2]
[348226992,1736404245640,-500.0,9.999e-05,2]
[348226993,1736404245650,-312.64872824,9.999e-05,2]
[348226994,1736404245660,-500.0,9.999e-05,2]
[348226995,1736404245670,-415.58307039,9.999e-05,2]
[348226996,1736404245679,-500.0,9.999e-05,2]
[348226997,1736404245689,-500.0,9.999e-05,2]
[348226998,1736404245699,-500.0,9.999e-05,2]
[348226999,1736404245709,-500.0,9.999e-05,2]
[348227000,1736404245720,-500.0,9.999e-05,2]
[348227001,1736404245730,-500.0,9.999e-05,2]
[348227002,1736404245740,-614.23,9.999e-05,2]
[348227003,1736404245750,-500.0,9.999e-05,2]
[348227004,1736404245760,-500.0,9.999e-05,2]
[348227005,1736404245769,-500.0,9.999e-05,2]
[348227006,1736404245778,-500.0,9.999e-05,2]
[348227007,1736404245788,-500.0,9.999e-05,2]
[348227008,1736404245798,-500.0,9.999e-05,2]
[348227009,1736404245807,-193.7229987,9.999e-05,2]
[348227010,1736404245817,-500.0,9.999e-05,2]
[348227011,1736404245826,-500.0,9.999e-05,2]
[348227012,1736404245837,-500.0,9.999e-05,2]
[348227013,1736404245847,-500.0,9.999e-05,2]
[348227014,1736404245858,-500.0,9.999e-05,2]
[348227015,1736404245869,-500.0,9.999e-05,2]
[348227016,1736404245879,-506.38414678,9.999e-05,2]
[348227017,1736404245890,-500.0,9.999e-05,2]
[348227018,1736404245900,-500.0,9.999e-05,2]
[348227019,1736404245910,-500.0,9.999e-05,2]
[348227020,1736404245920,-500.0,9.999e-05,2]
[348227021,1736404245930,-500.0,9.999e-05,2]
[348227022,1736404245940,-500.37377024,9.999e-05,2]
[348227023,1736404245949,-500.0,9.999e-05,2]
[348227024,1736404245959,-500.0,9.999e-05,2]
[348227025,1736404245971,-500.85628751,9.999e-05,2]
[348227026,1736404245981,-500.0,9.999e-05,2]
[348227027,1736404245993,-500.0,9.999e-05,2]
[348227028,1736404246003,-500.79133758,9.999e-05,2]
[348227029,1736404246013,-500.0,9.999e-05,2]
[348227030,1736404246023,-500.0,9.999e-05,2]
[348227031,1736404246033,-500.0,9.999e-05,2]
[348227032,1736404246043,-500.0,9.999e-05,2]
[348227033,1736404246053,-500.0,9.999e-05,2]
[348227034,1736404246062,-500.0,9.999e-05,2]
[348227035,1736404246071,-500.0,9.999e-05,2]
[348227036,1736404246081,-500.0,9.999e-05,2]
[348227037,1736404246090,-500.0,9.999e-05,2]
[348227038,1736404246100,-500.37079652,9.999e-05,2]
[348227039,1736404246109,-500.0,9.999e-05,2]
[348227040,1736404246119,-500.0,9.999e-05,2]
[348227041,1736404246128,-500.0,9.999e-05,2]
[348227042,1736404246137,-500.0,9.999e-05,2]
[348227043,1736404246147,-500.0,9.999e-05,2]
[348227044,1736404246156,-500.0,9.999e-05,2]
[348227045,1736404246165,-500.0,9.999e-05,2]
[348227046,1736404246174,-500.0,9.999e-05,2]
[348227047,1736404246183,-500.0,9.999e-05,2]
[348227049,1736404246193,-500.0,9.999e-05,2]
[348227051,1736404246202,-500.0,9.999e-05,2]
[348227052,1736404246211,-500.0,9.999e-05,2]
[348227053,1736404246221,-500.0,9.999e-05,2]
[348227054,1736404246229,-500.0,9.999e-05,2]
[348227055,1736404246239,-502.36252508,9.999e-05,2]
[348227056,1736404246249,-500.0,9.999e-05,2]
[348227057,1736404246258,-500.0,9.999e-05,2]
[348227058,1736404246267,-500.0,9.999e-05,2]
[348227059,1736404246276,-500.0,9.999e-05,2]
[348227060,1736404246287,-500.0,9.999e-05,2]
[348227061,1736404246296,-495.9130096,9.999e-05,2]
[348227062,1736404246307,-500.0,9.999e-05,2]
[348227063,1736404246316,-500.0,9.999e-05,2]
[348227064,1736404246325,-1054.51,9.999e-05,2]
[348227065,1736404246334,-500.0,9.999e-05,2]
[348227066,1736404246344,-500.0,9.999e-05,2]
[348227067,1736404246353,-504.14191721,9.999e-05,2]
[348227068,1736404246362,-500.0,9.999e-05,2]
[348227069,1736404246372,-501.02989664,9.999e-05,2]
[348227070,1736404246381,-500.0,9.999e-05,2]
[348227071,1736404246391,-503.47443321,9.999e-05,2]
[348227072,1736404246402,-612.0177811,9.999e-05,2]
[348227073,1736404246411,-526.08178114,9.999e-05,2]
[348227074,1736404246420,-500.0,9.999e-05,2]
[348227075,1736404246429,-500.0,9.999e-05,2]
[348227076,1736404246438,-500.0,9.999e-05,2]
[348227077,1736404246447,-500.82804996,9.999e-05,2]
[348227078,1736404246456,-500.0,9.999e-05,2]
[348227079,1736404246467,-500.0,9.999e-05,2]
[348227080,1736404246476,-500.0,9.999e-05,2]
[348227081,1736404246485,-500.0,9.999e-05,2]
[348227082,1736404246494,-500.0,9.999e-05,2]
[348227083,1736404246503,-500.0,9.999e-05,2]
[348227084,1736404246513,-500.0,9.999e-05,2]
[348227085,1736404246522,-500.0,9.999e-05,2]
[348227086,1736404246532,-500.0,9.999e-05,2]
[348227087,1736404246542,-500.0,9.999e-05,2]
[348227088,1736404246553,-516.71699819,9.999e-05,2]
[348227089,1736404246562,-500.0,9.999e-05,2]
[348227090,1736404246574,-500.0,9.999e-05,2]
[348227091,1736404246583,-500.0,9.999e-05,2]
[348227092,1736404246592,-500.0,9.999e-05,2]
[348227093,1736404246601,-500.0,9.999e-05,2]
[348227094,1736404246610,-500.0,9.999e-05,2]
[348227095,1736404246619,-500.0,9.999e-05,2]
[348227096,1736404246628,-500.0,9.999e-05,2]
[348227097,1736404246637,-500.0,9.999e-05,2]
[348227098,1736404246647,-500.0,9.999e-05,2]
[348227101,1736404246657,-500.0,9.999e-05,2]
[348227103,1736404246667,-500.0,9.999e-05,2]
[348227104,1736404246676,-500.0,9.999e-05,2]
[348227105,1736404246686,-500.0,9.999e-05,2]
[348227106,1736404246695,-500.0,9.999e-05,2]
[348227107,1736404246704,-500.0,9.999e-05,2]
[348227108,1736404246715,-782.054649,9.999e-05,2]
[348227109,1736404246725,-500.0,9.999e-05,2]
[348227110,1736404246734,-500.0,9.999e-05,2]
[348227111,1736404246743,-1397.76,9.999e-05,2]
[348227112,1736404246752,-500.0,9.999e-05,2]
[348227113,1736404246762,-500.0,9.999e-05,2]
[348227114,1736404246771,-156.900603,9.999e-05,2]
[348227115,1736404246780,-500.0,9.999e-05,2]
[348227116,1736404246789,-713.15,9.999e-05,2]
[348227117,1736404246798,-500.0,9.999e-05,2]
[348227118,1736404246808,-500.0,9.999e-05,2]
[348227119,1736404246817,-686.494397,9.999e-05,2]
[348227120,1736404246826,-500.0,9.999e-05,2]
[348227121,1736404246836,-501.92403733,9.999e-05,2]
[348227122,1736404246844,-500.0,9.999e-05,2]
[348227123,1736404246854,-502.06430385,9.999e-05,2]
[348227124,1736404246863,-500.0,9.999e-05,2]
[348227125,1736404246872,-500.0,9.999e-05,2]
[348227126,1736404246882,-500.0,9.999e-05,2]
[348227127,1736404246890,-502.03508118,9.999e-05,2]
[348227128,1736404246899,-505.5086575,9.999e-05,2]
[348227129,1736404246909,-500.0,9.999e-05,2]
[348227130,1736404246918,-500.0,9.999e-05,2]
[348227131,1736404246927,-500.0,9.999e-05,2]
[348227132,1736404246937,-500.0,9.999e-05,2]
[348227133,1736404246946,-500.99393048,9.999e-05,2]
[348227134,1736404246956,-223.33134866,9.999e-05,2]
[348227135,1736404246967,-502.67279092,9.999e-05,2]
[348227136,1736404246977,-500.0,9.999e-05,2]
[348227137,1736404246987,-501.61056429,9.999e-05,2]
[348227138,1736404246996,-500.0,9.999e-05,2]
[348227139,1736404247005,-500.0,9.999e-05,2]
[348227140,1736404247016,-502.06503944,9.999e-05,2]
[348227141,1736404247025,-309.12160879,9.999e-05,2]
[348227142,1736404247034,-500.0,9.999e-05,2]
[348227143,1736404247043,-500.0,9.999e-05,2]
[348227144,1736404247052,-178.47413262,9.999e-05,2]
[348227145,1736404247062,-500.0,9.999e-05,2]
[348227146,1736404247071,-507.3711613,9.999e-05,2]
[348227147,1736404247079,-1483.17,9.999e-05,2]
[348227148,1736404247089,-500.0,9.999e-05,2]
[348227149,1736404247098,-1872.94,9.999e-05,2]
[348227150,1736404247107,-500.0,9.999e-05,2]
[348227151,1736404247116,-500.0,9.999e-05,2]
[348227152,1736404247125,-500.0,9.999e-05,2]
[348227153,1736404247134,-500.0,9.999e-05,2]
[348227154,1736404247143,-500.0,9.999e-05,2]
[348227155,1736404247152,-500.0,9.999e-05,2]
[348227156,1736404247162,-500.0,9.999e-05,2]
[348227157,1736404247171,-500.0,9.999e-05,2]
[348227158,1736404247180,-1492.73,9.999e-05,2]
[348227159,1736404247189,-500.0,9.999e-05,2]
[348227160,1736404247199,-500.0,9.999e-05,2]
[348227161,1736404247208,-500.0,9.999e-05,2]
[348227162,1736404247219,-500.0,9.999e-05,2]
[348227163,1736404247229,-1400.19,9.999e-05,2]
[348227164,1736404247238,-500.0,9.999e-05,2]
[348227165,1736404247247,-500.0,9.999e-05,2]
[348227166,1736404247256,-500.0,9.999e-05,2]
[348227167,1736404247265,-500.0,9.999e-05,2]
[348227168,1736404247274,-500.0,9.999e-05,2]
[348227169,1736404247283,-500.0,9.999e-05,2]
[348227170,1736404247292,-500.0,9.999e-05,2]
[348227171,1736404247301,-500.0,9.999e-05,2]
[348227172,1736404247310,-500.0,9.999e-05,2]
[348227173,1736404247320,-219.48,9.999e-05,2]
[348227174,1736404247329,-500.0,9.999e-05,2]
[348227175,1736404247338,-500.0,9.999e-05,2]
[348227176,1736404247347,-500.0,9.999e-05,2]
[348227177,1736404247357,-500.0,9.999e-05,2]
[348227178,1736404247366,-500.0,9.999e-05,2]
[348227179,1736404247375,-500.0,9.999e-05,2]
[348227180,1736404247384,-500.0,9.999e-05,2]
[348227181,1736404247393,-500.0,9.999e-05,2]
[348227182,1736404247402,-500.0,9.999e-05,2]
[348227183,1736404247411,-500.0,9.999e-05,2]
[348227184,1736404247422,-260.31149286,9.999e-05,2]
[348227185,1736404247432,-500.0,9.999e-05,2]
[348227186,1736404247442,-500.0,9.999e-05,2]
[348227187,1736404247453,-500.0,9.999e-05,2]
[348227188,1736404247466,-10661.87653703,9.999e-05,2]
[348227189,1736404247475,-500.0,9.999e-05,2]
[348227190,1736404247484,-500.0,9.999e-05,2]
[348227191,1736404247493,-503.20446041,9.999e-05,2]
[348227192,1736404247503,-500.0,9.999e-05,2]
[348227193,1736404247512,-500.0,9.999e-05,2]
[348227194,1736404247521,-500.0,9.999e-05,2]
[348227195,1736404247531,-500.0,9.999e-05,2]
[348227196,1736404247540,-500.0,9.999e-05,2]
[348227197,1736404247549,-500.0,9.999e-05,2]
[348227198,1736404247558,-500.0,9.999e-05,2]
[348227199,1736404247568,-625.45,9.999e-05,2]
[348227200,1736404247580,-500.0,9.999e-05,2]
[348227201,1736404247589,-503.96806402,9.999e-05,2]
[348227202,1736404247599,-500.0,9.999e-05,2]
[348227203,1736404247608,-500.0,9.999e-05,2]
[348227204,1736404247618,-500.0,9.999e-05,2]
[348227205,1736404247629,-500.0,9.999e-05,2]
[348227206,1736404247639,-500.0,9.999e-05,2]
[348227207,1736404247651,-501.72616935,9.999e-05,2]
[348227208,1736404247662,-500.0,9.999e-05,2]
[348227209,1736404247671,-500.0,9.999e-05,2]
[348227210,1736404247680,-500.0,9.999e-05,2]
[348227211,1736404247690,-500.0,9.999e-05,2]
[348227212,1736404247699,-500.0,9.999e-05,2]
[348227213,1736404247708,-500.0,9.999e-05,2]
[348227214,1736404247719,-500.0,9.999e-05,2]
[348227215,1736404247729,-501.64213367,9.999e-05,2]
[348227216,1736404247738,-500.0,9.999e-05,2]
[348227217,1736404247747,-260.84462668,9.999e-05,2]
[348227218,1736404247756,-500.0,9.999e-05,2]
[348227219,1736404247765,-503.1604069,9.999e-05,2]
[348227220,1736404247775,-500.0,9.999e-05,2]
[348227221,1736404247783,-500.0,9.999e-05,2]
[348227222,1736404247793,-307.86466358,9.999e-05,2]
[348227223,1736404247803,-500.0,9.999e-05,2]
[348227224,1736404247812,-500.0,9.999e-05,2]
[348227225,1736404247821,-500.0,9.999e-05,2]
[348227226,1736404247830,-500.0,9.999e-05,2]
[348227227,1736404247841,-801.13,9.999e-05,2]
[348227228,1736404247851,-500.0,9.999e-05,2]
[348227229,1736404247861,-500.0,9.999e-05,2]
[348227230,1736404247870,-500.0,9.999e-05,2]
[348227231,1736404247881,-633.69,9.999e-05,2]
[348227232,1736404247890,-500.0,9.999e-05,2]
[348227233,1736404247899,-358.57218891,9.999e-05,2]
[348227234,1736404247908,-1045.0,0.0001,2]
[348227235,1736404247917,-8219553.43676911,0.0001,2]
[348227236,1736404247926,-197.24960957,0.0001,2]
[348227237,1736404247935,-132299.282986,0.0001,2]
[348227238,1736404247944,-151.0,0.0001,2]
[348227239,1736404247954,-151.0,0.0001,2]
[348227240,1736404247965,-766846.77,0.0001,2]
[348227241,1736404247974,-170.49861168,0.0001,2]
[348227242,1736404247983,-172.6,0.0001,2]
[348227243,1736404247993,-161.52,0.0001,2]
[348227244,1736404248003,-150.0,0.0001,2]
[348227245,1736404248012,-164.43239004,0.0001,2]
[348227246,1736404248021,-590447.54576719,0.0001,2]
[348227247,1736404248323,-7084.55719837,0.0001,2]
[348227248,1736404248383,-488886.03749541,0.0001,2]
[348227249,1736404248395,-539.34332047,0.0001,2]
[348227250,1736404248783,-500.0,9.994e-05,2]
[348227251,1736404248794,-500.0,9.999e-05,2]
[348227252,1736404248803,-295895.48452342,0.0001,2]
[348227253,1736404248873,-141726.15654079,0.0001,2]
[348227254,1736404248909,-487.46,0.0001,2]
[348227255,1736404248921,-1501.94592001,0.0001,2]
[348227256,1736404248933,-391.36205656,0.0001,2]
[348227257,1736404248945,-610.264,0.0001,2]
[348227258,1736404249313,-416.22502454,9.994e-05,2]